fUST/lending_fUST_20250825
["ID","MTS","AMOUNT","RATE_DAILY","PERIOD"]
[381133388,1756065046991,-401.05432416,0.00049589,120]
[381133389,1756065047000,-480.0,0.00049589,7]
[381133390,1756065047010,-480.0,0.00049589,120]
[381133391,1756065047019,-480.0,0.00049589,120]
[381133392,1756065047028,-406.40814552,0.00049589,120]
[381133393,1756065047037,-480.0,0.00049589,120]
[381133394,1756065047046,-919.51,0.00049589,120]
[381133395,1756065047056,-1538.62885026,0.00049589,120]
[381133396,1756065047071,-664.57114974,0.00049589,120]
[381133397,1756065047081,-1343.9,0.00049589,120]
[381133398,1756065047090,-480.0,0.00049589,120]
[381133399,1756065047099,-483.7,0.00049589,120]
[381133400,1756065047108,-480.0,0.00049589,120]
[381133401,1756065047117,-480.0,0.00049589,120]
[381133402,1756065047126,-480.0,0.00049589,120]
[381133403,1756065047136,-480.0,0.00049589,120]
[381133404,1756065047147,-1743.94,0.00049589,120]
[381133405,1756065047158,-480.0,0.00049589,120]
[381133406,1756065047167,-480.0,0.00049589,30]
[381133407,1756065047176,-480.0,0.00049589,120]
[381133408,1756065047186,-480.0,0.00049589,120]
[381133409,1756065047196,-480.0,0.00049589,120]
[381133410,1756065047205,-480.0,0.00049589,120]
[381133411,1756065047214,-633.19,0.00049589,120]
[381133412,1756065047223,-278.60028851,0.00049589,2]
[381133413,1756065047235,-707.21,0.00049589,120]
[381133414,1756065047244,-500.0,0.00049589,2]
[381133415,1756065047253,-480.0,0.00049589,120]
[381133416,1756065047263,-480.0,0.00049589,120]
[381133417,1756065047272,-480.0,0.00049589,120]
[381133418,1756065047282,-480.0,0.00049589,120]
[381133419,1756065047292,-480.0,0.00049589,120]
[381133421,1756065047301,-480.0,0.00049589,120]
[381133422,1756065047313,-480.0,0.00049589,120]
[381133424,1756065047322,-480.0,0.00049589,120]
[381133425,1756065047332,-1343.31,0.00049589,120]
[381133427,1756065047342,-480.0,0.00049589,120]
[381133429,1756065047351,-480.0,0.00049589,120]
[381133431,1756065047362,-480.0,0.00049589,120]
[381133433,1756065047371,-480.0,0.00049589,120]
[381133435,1756065047382,-151.0,0.00049589,120]
[381133436,1756065047391,-151.0,0.00049589,120]
[381133438,1756065047401,-274.71111159,0.00049589,120]
[381133440,1756065047410,-480.0,0.00049589,120]
[381133442,1756065047419,-480.0,0.00049589,120]
[381133444,1756065047429,-480.0,0.00049589,120]
[381133446,1756065047439,-480.0,0.00049589,120]
[381133448,1756065047448,-480.0,0.00049589,120]
[381133450,1756065047457,-288.06092243,0.00049589,120]
[381133452,1756065047467,-480.0,0.00049589,120]
[381133454,1756065047476,-480.0,0.00049589,120]
[381133456,1756065047485,-816.47,0.00049589,120]
[381133458,1756065047494,-480.0,0.00049589,120]
[381133459,1756065047504,-480.0,0.00049589,120]
[381133461,1756065047513,-480.0,0.00049589,120]
[381133463,1756065047523,-480.0,0.00049589,120]
[381133465,1756065047532,-540.21782626,0.00049589,120]
[381133466,1756065047542,-480.0,0.00049589,120]
[381133467,1756065047552,-480.0,0.00049589,120]
[381133468,1756065047565,-480.0,0.00049589,120]
[381133469,1756065047574,-480.0,0.00049589,120]
[381133470,1756065047584,-480.0,0.00049589,120]
[381133471,1756065047594,-644.43,0.00049589,120]
[381133472,1756065047603,-1200.19,0.00049589,120]
[381133473,1756065047613,-480.0,0.00049589,120]
[381133474,1756065047622,-480.0,0.00049589,120]
[381133475,1756065047632,-480.0,0.00049589,120]
[381133476,1756065047641,-480.0,0.00049589,120]
[381133477,1756065047651,-722.57,0.00049589,120]
[381133478,1756065047660,-480.0,0.00049589,120]
[381133479,1756065047669,-480.0,0.00049589,120]
[381133480,1756065047679,-480.0,0.00049589,120]
[381133481,1756065047689,-480.0,0.00049589,120]
[381133482,1756065047698,-480.0,0.00049589,120]
[381133483,1756065047707,-480.0,0.00049589,120]
[381133484,1756065047718,-1000.0,0.00049589,120]
[381133485,1756065047727,-480.0,0.00049589,120]
[381133486,1756065047737,-480.0,0.00049589,120]
[381133487,1756065047746,-480.0,0.00049589,120]
[381133488,1756065047756,-480.0,0.00049589,120]
[381133489,1756065047766,-480.0,0.00049589,120]
[381133490,1756065047776,-1008.65,0.00049589,120]
[381133491,1756065047786,-365.00287602,0.00049589,120]
[381133492,1756065047796,-393.43743815,0.00049589,120]
[381133493,1756065047806,-519.14,0.00049589,120]
[381133494,1756065047819,-480.0,0.00049589,120]
[381133495,1756065047829,-480.0,0.00049589,120]
[381133496,1756065047838,-988.76,0.00049589,120]
[381133497,1756065047848,-480.0,0.00049589,90]
[381133498,1756065047857,-868.89,0.00049589,120]
[381133499,1756065047867,-480.0,0.00049589,120]
[381133500,1756065047876,-480.0,0.00049589,120]
[381133501,1756065047885,-627.13,0.00049589,120]
[381133502,1756065047895,-480.0,0.00049589,120]
[381133503,1756065047905,-828.06,0.00049589,120]
[381133504,1756065047916,-509.00201269,0.00049589,120]
[381133505,1756065047925,-480.0,0.00049589,120]
[381133506,1756065047935,-981.17,0.00049589,120]
[381133507,1756065047944,-571.47,0.00049589,120]
[381133508,1756065047954,-480.0,0.00049589,120]
[381133509,1756065047965,-480.0,0.00049589,120]
[381133510,1756065047977,-480.0,0.00049589,120]
[381133511,1756065047986,-480.0,0.00049589,120]
[381133512,1756065047996,-480.0,0.00049589,120]
[381133513,1756065048005,-678.04,0.00049589,120]
[381133514,1756065048015,-1537.0,0.00049589,120]
[381133515,1756065048024,-480.0,0.00049589,120]
[381133516,1756065048033,-258.35063788,0.00049589,120]
[381133517,1756065048043,-480.0,0.00049589,120]
[381133518,1756065048053,-2074.92,0.00049589,120]
[381133519,1756065048069,-240.2385058,0.00049589,120]
[381133520,1756065048079,-480.0,0.00049589,120]
[381133521,1756065048089,-1862.88,0.00049589,120]
[381133522,1756065048099,-516.35,0.00049589,120]
[381133523,1756065048109,-1716.85,0.00049589,120]
[381133524,1756065048119,-1821.19,0.00049589,120]
[381133525,1756065048128,-325.61981417,0.00049589,120]
[381133526,1756065048138,-480.0,0.00049589,120]
[381133527,1756065048147,-480.0,0.00049589,120]
[381133528,1756065048157,-838.77,0.00049589,120]
[381133529,1756065048166,-571.93,0.00049589,120]
[381133530,1756065048176,-480.0,0.00049589,120]
[381133531,1756065048186,-480.0,0.00049589,120]
[381133532,1756065048196,-689.79,0.00049589,120]
[381133533,1756065048206,-237.23814825,0.00049589,120]
[381133534,1756065048216,-667.32,0.00049589,120]
[381133535,1756065048226,-480.0,0.00049589,120]
[381133536,1756065048236,-480.0,0.00049589,120]
[381133537,1756065048246,-480.0,0.00049589,120]
[381133538,1756065048256,-480.0,0.00049589,120]
[381133539,1756065048266,-480.0,0.00049589,120]
[381133540,1756065048276,-2547.8,0.00049589,120]
[381133541,1756065048286,-545.82,0.00049589,120]
[381133542,1756065048296,-480.0,0.00049589,120]
[381133543,1756065048306,-480.0,0.00049589,120]
[381133544,1756065048318,-480.0,0.00049589,120]
[381133545,1756065048328,-480.0,0.00049589,120]
[381133546,1756065048339,-520.63,0.00049589,120]
[381133547,1756065048349,-480.0,0.00049589,120]
[381133548,1756065048359,-480.0,0.00049589,120]
[381133549,1756065048369,-786.22,0.00049589,120]
[381133550,1756065048380,-480.0,0.00049589,120]
[381133551,1756065048390,-480.0,0.00049589,120]
[381133552,1756065048400,-480.0,0.00049589,120]
[381133553,1756065048409,-480.0,0.00049589,2]
[381133554,1756065048419,-823.03,0.00049589,120]
[381133555,1756065048429,-480.0,0.00049589,120]
[381133556,1756065048439,-793.94,0.00049589,120]
[381133557,1756065048448,-613.43,0.00049589,120]
[381133558,1756065048460,-480.0,0.00049589,120]
[381133559,1756065048469,-480.0,0.00049589,120]
[381133560,1756065048478,-480.0,0.00049589,120]
[381133561,1756065048487,-506.59,0.00049589,120]
[381133562,1756065048497,-878.05,0.00049589,120]
[381133563,1756065048507,-480.0,0.00049589,120]
[381133564,1756065048516,-480.0,0.00049589,120]
[381133565,1756065048526,-1173.11,0.00049589,120]
[381133566,1756065048535,-200.0,0.00049589,2]
[381133567,1756065048544,-4528.7,0.00049589,120]
[381133568,1756065048554,-480.0,0.00049589,120]
[381133569,1756065048564,-1754.62,0.00049589,120]
[381133570,1756065048574,-480.0,0.00049589,120]
[381133571,1756065048584,-480.0,0.00049589,120]
[381133572,1756065048593,-480.0,0.00049589,120]
[381133574,1756065048602,-564.11,0.00049589,120]
[381133575,1756065048611,-644.18,0.00049589,120]
[381133577,1756065048621,-413.29704816,0.00049589,120]
[381133579,1756065048631,-480.0,0.00049589,120]
[381133581,1756065048639,-480.0,0.00049589,120]
[381133583,1756065048649,-480.0,0.00049589,120]
[381133584,1756065048658,-480.0,0.00049589,120]
[381133586,1756065048667,-590.3,0.00049589,120]
[381133588,1756065048677,-480.0,0.00049589,120]
[381133590,1756065048686,-480.0,0.00049589,120]
[381133591,1756065048696,-2256.55,0.00049589,120]
[381133593,1756065048706,-480.0,0.00049589,120]
[381133595,1756065048715,-480.0,0.00049589,120]
[381133597,1756065048724,-151.0,0.00049589,120]
[381133599,1756065048734,-169.161124,0.00049589,120]
[381133601,1756065048743,-480.0,0.00049589,120]
[381133603,1756065048753,-199.61855014,0.00049589,7]
[381133604,1756065048763,-480.0,0.00049589,120]
[381133606,1756065048773,-761.25,0.00049589,120]
[381133608,1756065048783,-1640.45,0.00049589,120]
[381133610,1756065048793,-480.0,0.00049589,120]
[381133612,1756065048803,-480.0,0.00049589,120]
[381133614,1756065048814,-480.0,0.00049589,120]
[381133616,1756065048824,-384.14139132,0.00049589,120]
[381133618,1756065048835,-480.0,0.00049589,120]
[381133620,1756065048844,-1127.19,0.00049589,120]
[381133622,1756065048853,-480.0,0.00049589,120]
[381133623,1756065048863,-666.3,0.00049589,120]
[381133625,1756065048872,-807.6,0.00049589,120]
[381133627,1756065048881,-480.0,0.00049589,120]
[381133629,1756065048891,-827.63,0.00049589,120]
[381133631,1756065048901,-485.0,0.00049589,120]
[381133633,1756065048910,-480.0,0.00049589,120]
[381133635,1756065048920,-480.0,0.00049589,120]
[381133637,1756065048929,-480.0,0.00049589,120]
[381133639,1756065048938,-517.45,0.00049589,120]
[381133641,1756065048947,-1680.19,0.00049589,120]
[381133643,1756065048957,-480.98094137,0.00049589,120]
[381133645,1756065048966,-2562.28,0.00049589,120]
[381133647,1756065048976,-1275.31,0.00049589,120]
[381133649,1756065048985,-480.0,0.00049589,120]
[381133651,1756065048995,-480.0,0.00049589,120]
[381133653,1756065049004,-480.0,0.00049589,120]
[381133655,1756065049014,-503.05,0.00049589,120]
[381133656,1756065049024,-480.0,0.00049589,120]
[381133658,1756065049033,-743.05,0.00049589,120]
[381133660,1756065049042,-480.0,0.00049589,120]
[381133662,1756065049051,-480.0,0.00049589,120]
[381133664,1756065049065,-585.11,0.00049589,120]
[381133666,1756065049074,-655.28,0.00049589,120]
[381133668,1756065049083,-480.0,0.00049589,120]
[381133670,1756065049093,-480.0,0.00049589,120]
[381133672,1756065049104,-480.0,0.00049589,120]
[381133674,1756065049113,-480.0,0.00049589,120]
[381133676,1756065049123,-480.51438352,0.00049589,120]
[381133678,1756065049133,-480.0,0.00049589,120]
[381133680,1756065049144,-2049.19,0.00049589,120]
[381133682,1756065049153,-480.0,0.00049589,120]
[381133684,1756065049162,-480.0,0.00049589,120]
[381133686,1756065049172,-480.0,0.00049589,120]
[381133688,1756065049183,-415.07251526,0.00049589,120]
[381133690,1756065049192,-480.0,0.00049589,120]
[381133692,1756065049201,-505.70402225,0.00049589,120]
[381133694,1756065049211,-480.0,0.00049589,120]
[381133696,1756065049220,-532.75,0.00049589,120]
[381133698,1756065049229,-480.0,0.00049589,120]
[381133700,1756065049239,-578.05,0.00049589,120]
[381133702,1756065049248,-480.0,0.00049589,120]
[381133703,1756065049258,-480.0,0.00049589,120]
[381133705,1756065049268,-486.76,0.00049589,120]
[381133707,1756065049277,-628.16,0.00049589,120]
[381133709,1756065049286,-480.0,0.00049589,120]
[381133711,1756065049296,-480.0,0.00049589,120]
[381133713,1756065049305,-640.78,0.00049589,120]
[381133715,1756065049316,-2795.76,0.00049589,120]
[381133717,1756065049325,-480.0,0.00049589,120]
[381133719,1756065049335,-880.95,0.00049589,120]
[381133721,1756065049344,-1651.72,0.00049589,120]
[381133723,1756065049353,-504.31,0.00049589,120]
[381133725,1756065049363,-873.66,0.00049589,120]
[381133727,1756065049373,-151.0,0.00049589,120]
[381133729,1756065049382,-480.0,0.00049589,120]
[381133731,1756065049391,-480.0,0.00049589,120]
[381133733,1756065049401,-480.0,0.00049589,120]
[381133735,1756065049410,-1654.07,0.00049589,120]
[381133737,1756065049420,-4637.55,0.00049589,120]
[381133739,1756065049429,-683.73,0.00049589,120]
[381133740,1756065049439,-1070.69,0.00049589,120]
[381133742,1756065049448,-480.0,0.00049589,120]
[381133744,1756065049457,-579.09,0.00049589,120]
[381133746,1756065049466,-151.0,0.00049589,120]
[381133748,1756065049475,-480.0,0.00049589,120]
[381133750,1756065049484,-480.0,0.00049589,120]
[381133752,1756065049494,-151.0,0.00049589,120]
[381133754,1756065049503,-480.0,0.00049589,120]
[381133756,1756065049513,-151.0,0.00049589,120]
[381133758,1756065049523,-480.0,0.00049589,120]
[381133760,1756065049532,-1012.6,0.00049589,120]
[381133762,1756065049542,-926.91,0.00049589,120]
[381133764,1756065049552,-1193.57,0.00049589,120]
[381133766,1756065049562,-480.0,0.00049589,120]
[381133768,1756065049571,-151.0,0.00049589,120]
[381133770,1756065049580,-480.0,0.00049589,120]
[381133772,1756065049592,-939.84,0.00049589,120]
[381133773,1756065049601,-480.0,0.00049589,120]
[381133775,1756065049611,-151.0,0.00049589,120]
[381133777,1756065049620,-480.0,0.00049589,120]
[381133779,1756065049629,-480.0,0.00049589,120]
[381133781,1756065049638,-480.0,0.00049589,120]
[381133783,1756065049647,-151.0,0.00049589,120]
[381133785,1756065049656,-598.63,0.00049589,120]
[381133787,1756065049666,-480.0,0.00049589,120]
[381133789,1756065049676,-544.45,0.00049589,120]
[381133791,1756065049685,-480.0,0.00049589,120]
[381133793,1756065049694,-480.0,0.00049589,120]
[381133795,1756065049703,-239.43245315,0.00049589,120]
[381133797,1756065049713,-480.0,0.00049589,120]
[381133799,1756065049722,-1783.48,0.00049589,120]
[381133801,1756065049731,-500.0,0.00049589,120]
[381133803,1756065049741,-500.0,0.00049589,120]
[381133804,1756065049750,-480.0,0.00049589,120]
[381133806,1756065049759,-480.0,0.00049589,120]
[381133808,1756065049769,-281.62,0.00049589,120]
[381133810,1756065049778,-662.2,0.00049589,7]
[381133812,1756065049787,-480.0,0.00049589,120]
[381133814,1756065049796,-980.3,0.00049589,120]
[381133816,1756065049806,-3505.12,0.00049589,120]
[381133818,1756065049817,-1175.96,0.00049589,120]
[381133820,1756065049826,-861.04,0.00049589,120]
[381133822,1756065049836,-599.13,0.00049589,120]
[381133824,1756065049845,-480.0,0.00049589,120]
[381133826,1756065049854,-480.0,0.00049589,120]
[381133828,1756065049864,-480.0,0.00049589,120]
[381133830,1756065049873,-480.0,0.00049589,120]
[381133831,1756065049883,-480.0,0.00049589,120]
[381133849,1756065050036,-965.54,0.00049589,120]
[381133851,1756065050065,-480.0,0.00049589,120]
[381133853,1756065050075,-480.0,0.00049589,120]
[381133855,1756065050084,-480.0,0.00049589,120]
[381133857,1756065050093,-165.11748574,0.00049589,120]
[381133859,1756065050103,-3415.41,0.00049589,120]
[381133861,1756065050113,-736.89,0.00049589,120]
[381133863,1756065050122,-480.0,0.00049589,120]
[381133865,1756065050132,-480.0,0.00049589,120]
[381133867,1756065050143,-480.0,0.00049589,120]
[381133869,1756065050152,-480.0,0.00049589,120]
[381133871,1756065050162,-480.0,0.00049589,120]
[381133873,1756065050172,-2215.23,0.00049589,120]
[381133875,1756065050182,-485.26,0.00049589,120]
[381133877,1756065050190,-151.0,0.00049589,120]
[381133879,1756065050200,-480.0,0.00049589,120]
[381133880,1756065050209,-151.0,0.00049589,120]
[381133882,1756065050219,-2138.96,0.00049589,120]
[381133884,1756065050228,-480.0,0.00049589,120]
[381133886,1756065050237,-480.0,0.00049589,120]
[381133888,1756065050247,-4166.07,0.00049589,120]
[381133890,1756065050256,-528.50808425,0.00049589,120]
[381133892,1756065050266,-717.05,0.00049589,120]
[381133894,1756065050275,-480.0,0.00049589,120]
[381133896,1756065050284,-480.0,0.00049589,120]
[381133898,1756065050294,-816.94,0.00049589,120]
[381133900,1756065050304,-480.0,0.00049589,120]
[381133902,1756065050315,-480.0,0.00049589,120]
[381133904,1756065050324,-480.0,0.00049589,120]
[381133905,1756065050333,-715.65,0.00049589,120]
[381133907,1756065050343,-480.0,0.00049589,120]
[381133909,1756065050353,-480.0,0.00049589,20]
[381133911,1756065050363,-480.0,0.00049589,120]
[381133913,1756065050373,-896.41,0.00049589,120]
[381133915,1756065050383,-678.58,0.00049589,120]
[381133917,1756065050392,-480.0,0.00049589,120]
[381133919,1756065050402,-480.0,0.00049589,120]
[381133921,1756065050411,-480.0,0.00049589,120]
[381133923,1756065050421,-1286.3,0.00049589,120]
[381133925,1756065050431,-480.0,0.00049589,120]
[381133927,1756065050440,-480.0,0.00049589,120]
[381133928,1756065050450,-1029.02,0.00049589,120]
[381133930,1756065050460,-480.0,0.00049589,120]
[381133932,1756065050469,-536.14,0.00049589,120]
[381133933,1756065050479,-2103.0,0.00049589,120]
[381133934,1756065050489,-2552.75,0.00049589,120]
[381133935,1756065050499,-1116.89,0.00049589,120]
[381133936,1756065050508,-480.0,0.00049589,120]
[381133937,1756065050518,-480.0,0.00049589,120]
[381133938,1756065050528,-500.0,0.00049589,120]
[381133939,1756065050537,-500.0,0.00049589,120]
[381133940,1756065050546,-500.0,0.00049589,120]
[381133941,1756065050555,-297.60965015,0.00049589,120]
[381133942,1756065050568,-480.0,0.00049589,120]
[381133943,1756065050577,-480.0,0.00049589,120]
[381133944,1756065050587,-480.0,0.00049589,120]
[381133945,1756065050596,-480.0,0.00049589,120]
[381133946,1756065050606,-480.0,0.00049589,120]
[381133947,1756065050616,-480.0,0.00049589,120]
[381133948,1756065050625,-480.0,0.00049589,120]
[381133949,1756065050634,-480.0,0.00049589,120]
[381133950,1756065050644,-480.0,0.00049589,120]
[381133951,1756065050653,-565.64,0.00049589,120]
[381133952,1756065050663,-480.0,0.00049589,120]
[381133953,1756065050673,-1697.71,0.00049589,120]
[381133954,1756065050683,-3122.9,0.00049589,120]
[381133955,1756065050692,-480.0,0.00049589,120]
[381133956,1756065050703,-480.0,0.00049589,120]
[381133957,1756065050712,-480.0,0.00049589,120]
[381133958,1756065050722,-151.0,0.00049589,120]
[381133959,1756065050732,-480.0,0.00049589,120]
[381133961,1756065050741,-480.0,0.00049589,120]
[381133962,1756065050751,-1246.14,0.00049589,120]
[381133964,1756065050761,-480.0,0.00049589,120]
[381133966,1756065050771,-880.87,0.00049589,120]
[381133968,1756065050781,-666.63,0.00049589,120]
[381133970,1756065050790,-480.0,0.00049589,120]
[381133972,1756065050800,-667.36,0.00049589,120]
[381133973,1756065050810,-480.0,0.00049589,120]
[381133974,1756065050823,-480.0,0.00049589,120]
[381133975,1756065050833,-660.0,0.00049589,120]
[381133976,1756065050843,-480.0,0.00049589,120]
[381133977,1756065050852,-480.0,0.00049589,120]
[381133978,1756065050861,-151.0,0.00049589,120]
[381133979,1756065050871,-480.0,0.00049589,120]
[381133980,1756065050879,-666.28,0.00049589,20]
[381133981,1756065050889,-627.74,0.00049589,120]
[381133982,1756065050899,-151.0,0.00049589,120]
[381133983,1756065050908,-1128.86,0.00049589,120]
[381133984,1756065050918,-480.0,0.00049589,120]
[381133985,1756065050927,-1203.59,0.00049589,120]
[381133986,1756065050936,-480.0,0.00049589,120]
[381133987,1756065050945,-1227.01,0.00049589,120]
[381133988,1756065050955,-500.95913686,0.00049589,120]
[381133989,1756065050965,-480.0,0.00049589,120]
[381133990,1756065050975,-617.0008143,0.00049589,120]
[381133991,1756065050984,-503.32,0.00049589,120]
[381133992,1756065050994,-1283.12,0.00049589,120]
[381133993,1756065051004,-480.0,0.00049589,120]
[381133994,1756065051013,-2883.72,0.00049589,120]
[381133995,1756065051023,-480.0,0.00049589,120]
[381133996,1756065051033,-480.0,0.00049589,120]
[381133997,1756065051043,-480.0,0.00049589,120]
[381133998,1756065051054,-489.98,0.00049589,120]
[381133999,1756065051070,-462.38456494,0.00049589,120]
[381134000,1756065051080,-480.0,0.00049589,120]
[381134001,1756065051090,-480.0,0.00049589,120]
[381134002,1756065051100,-1173.44,0.00049589,120]
[381134003,1756065051109,-480.0,0.00049589,120]
[381134004,1756065051119,-2403.72,0.00049589,120]
[381134005,1756065051128,-575.38,0.00049589,120]
[381134006,1756065051138,-500.0,0.00049589,120]
[381134007,1756065051149,-480.0,0.00049589,120]
[381134008,1756065051159,-500.0,0.00049589,120]
[381134009,1756065051168,-500.0,0.00049589,120]
[381134010,1756065051178,-500.0,0.00049589,120]
[381134011,1756065051187,-500.0,0.00049589,120]
[381134012,1756065051196,-500.0,0.00049589,120]
[381134013,1756065051206,-500.0,0.00049589,120]
[381134014,1756065051215,-500.0,0.00049589,120]
[381134015,1756065051225,-460.37447384,0.00049589,120]
[381134016,1756065051235,-500.0,0.00049589,120]
[381134017,1756065051244,-500.0,0.00049589,120]
[381134018,1756065051253,-500.0,0.00049589,120]
[381134019,1756065051263,-500.0,0.00049589,120]
[381134020,1756065051272,-325.06564611,0.00049589,120]
[381134021,1756065051281,-825.22,0.00049589,120]
[381134022,1756065051291,-480.0,0.00049589,120]
[381134023,1756065051300,-480.0,0.00049589,120]
[381134024,1756065051309,-480.0,0.00049589,120]
[381134025,1756065051321,-911.63,0.00049589,120]
[381134026,1756065051331,-580.1683861,0.00049589,120]
[381134027,1756065051340,-480.0,0.00049589,120]
[381134028,1756065051350,-480.0,0.00049589,120]
[381134029,1756065051359,-480.0,0.00049589,120]
[381134030,1756065051368,-1328.32,0.00049589,120]
[381134031,1756065051377,-480.0,0.00049589,120]
[381134032,1756065051387,-534.00201677,0.00049589,120]
[381134033,1756065051396,-480.0,0.00049589,120]
[381134034,1756065051405,-480.0,0.00049589,120]
[381134035,1756065051414,-480.0,0.00049589,30]
[381134036,1756065051423,-480.0,0.00049589,120]
[381134037,1756065051433,-480.0,0.00049589,120]
[381134038,1756065051442,-480.0,0.00049589,120]
[381134039,1756065051451,-480.0,0.00049589,120]
[381134040,1756065051460,-692.14,0.00049589,120]
[381134041,1756065051469,-480.0,0.00049589,120]
[381134042,1756065051478,-1561.45,0.00049589,120]
[381134043,1756065051487,-2214.1,0.00049589,120]
[381134044,1756065051497,-480.0,0.00049589,120]
[381134045,1756065051507,-761.12,0.00049589,120]
[381134046,1756065051516,-776.25,0.00049589,120]
[381134047,1756065051526,-151.0,0.00049589,120]
[381134048,1756065051535,-815.81,0.00049589,120]
[381134049,1756065051545,-151.0,0.00049589,120]
[381134050,1756065051555,-262.62,0.00049589,120]
[381134051,1756065051565,-5339.15,0.00049589,120]
[381134052,1756065051575,-480.0,0.00049589,120]
[381134053,1756065051585,-492.16,0.00049589,120]
[381134054,1756065051594,-480.0,0.00049589,120]
[381134055,1756065051603,-480.0,0.00049589,120]
[381134056,1756065051613,-480.0,0.00049589,120]
[381134057,1756065051622,-480.0,0.00049589,120]
[381134058,1756065051631,-2308.09,0.00049589,120]
[381134059,1756065051641,-1453.77,0.00049589,120]
[381134060,1756065051650,-480.0,0.00049589,5]
[381134062,1756065051660,-480.0,0.00049589,120]
[381134064,1756065051669,-480.0,0.00049589,120]
[381134066,1756065051678,-480.0,0.00049589,120]
[381134067,1756065051687,-309.62786738,0.00049589,120]
[381134068,1756065051697,-716.25,0.00049589,120]
[381134070,1756065051706,-480.0,0.00049589,120]
[381134072,1756065051715,-851.43,0.00049589,120]
[381134074,1756065051724,-4190.71,0.00049589,120]
[381134075,1756065051734,-480.0,0.00049589,120]
[381134077,1756065051743,-847.37,0.00049589,120]
[381134078,1756065051753,-537.77,0.00049589,120]
[381134080,1756065051762,-1801.67,0.00049589,120]
[381134082,1756065051771,-480.0,0.00049589,120]
[381134083,1756065051780,-480.0,0.00049589,120]
[381134085,1756065051790,-480.0,0.00049589,120]
[381134087,1756065051799,-480.0,0.00049589,120]
[381134088,1756065051808,-480.0,0.00049589,120]
[381134090,1756065051818,-151.0,0.00049589,120]
[381134092,1756065051828,-151.0,0.00049589,120]
[381134093,1756065051838,-933.47,0.00049589,120]
[381134095,1756065051847,-5411.44,0.00049589,120]
[381134097,1756065051857,-461.40067309,0.00049589,120]
[381134099,1756065051866,-541.05,0.00049589,120]
[381134101,1756065051875,-480.0,0.00049589,120]
[381134102,1756065051885,-972.43,0.00049589,120]
[381134103,1756065051894,-480.0,0.00049589,120]
[381134104,1756065051903,-1987.96,0.00049589,120]
[381134105,1756065051913,-1987.96,0.00049589,120]
[381134106,1756065051922,-1987.96,0.00049589,120]
[381134107,1756065051932,-1987.96,0.00049589,120]
[381134108,1756065051941,-1987.96,0.00049589,120]
[381134109,1756065051950,-1987.96,0.00049589,120]
[381134110,1756065051960,-1987.96,0.00049589,120]
[381134111,1756065051969,-1987.96,0.00049589,120]
[381134112,1756065051979,-480.0,0.00049589,120]